[Event "Titled Tuesday Blitz June 07 Early 2022"]
[White "Paravyan, David"]
[Black "De Silva, L M S T"]
[WhiteFideId "4194985"]
[BlackFideId "9953698"]
[WhiteElo "2569"]
[BlackElo "1631"]
[Result "1/2-1/2"]
[Round "04"]
[TimeControl "180+1"]
[Date "2022.06.07"]
[WhiteClock "0:00:03"]
[BlackClock "0:00:09"]

1. e4 {[%clk 0:03:00]}  e5 {[%clk 0:02:59]} 2. Nf3 {[%clk 0:03:00]}  Nc6 {[%clk 0:02:59]} 3. Nc3 {[%clk 0:03:01]}  Nf6 {[%clk 0:02:59]} 4. d4 {[%clk 0:03:01]}  exd4 {[%clk 0:02:57]} 5. Nxd4 {[%clk 0:03:02]}  Bb4 {[%clk 0:02:57]} 6. Nxc6 {[%clk 0:03:02]}  bxc6 {[%clk 0:02:58]} 7. Bd3 {[%clk 0:03:03]}  d5 {[%clk 0:02:59]} 8. exd5 {[%clk 0:03:04]}  O-O {[%clk 0:02:58]} 9. O-O {[%clk 0:03:04]}  cxd5 {[%clk 0:02:58]} 10. Bg5 {[%clk 0:03:05]}  c6 {[%clk 0:02:57]} 11. Qf3 {[%clk 0:03:04]}  h6 {[%clk 0:02:53]} 12. Bxf6 {[%clk 0:03:02]}  Qxf6 {[%clk 0:02:54]} 13. Qxf6 {[%clk 0:03:03]}  gxf6 {[%clk 0:02:55]} 14. Ne2 {[%clk 0:03:03]}  Bd6 {[%clk 0:02:53]} 15. Nd4 {[%clk 0:02:50]}  c5 {[%clk 0:02:45]} 16. Nf5 {[%clk 0:02:49]}  Bxf5 {[%clk 0:02:44]} 17. Bxf5 {[%clk 0:02:48]}  Rfe8 {[%clk 0:02:43]} 18. Rad1 {[%clk 0:02:38]}  Re5 {[%clk 0:02:42]} 19. Bd7 {[%clk 0:02:30]}  Rd8 {[%clk 0:02:39]} 20. Bg4 {[%clk 0:02:16]}  Bc7 {[%clk 0:02:32]} 21. Bf3 {[%clk 0:02:16]}  d4 {[%clk 0:02:32]} 22. b3 {[%clk 0:02:12]}  Ba5 {[%clk 0:02:30]} 23. Rd3 {[%clk 0:01:55]}  Rde8 {[%clk 0:02:27]} 24. g3 {[%clk 0:01:53]}  Re1 {[%clk 0:02:25]} 25. Rd1 {[%clk 0:01:53]}  R1e5 {[%clk 0:02:21]} 26. Kg2 {[%clk 0:01:52]}  Kg7 {[%clk 0:02:21]} 27. Bc6 {[%clk 0:01:50]}  R8e7 {[%clk 0:02:19]} 28. Bb5 {[%clk 0:01:50]}  Bc3 {[%clk 0:02:17]} 29. Bd3 {[%clk 0:01:38]}  a5 {[%clk 0:02:07]} 30. f4 {[%clk 0:01:32]}  Re3 {[%clk 0:02:06]} 31. Rf3 {[%clk 0:01:32]}  Rxf3 {[%clk 0:02:05]} 32. Kxf3 {[%clk 0:01:32]}  Re3+ {[%clk 0:02:06]} 33. Kg4 {[%clk 0:01:27]}  Bb4 {[%clk 0:02:01]} 34. Rf1 {[%clk 0:01:27]}  Bc3 {[%clk 0:01:59]} 35. Kf5 {[%clk 0:01:19]}  h5 {[%clk 0:01:53]} 36. Rf2 {[%clk 0:01:18]}  Re7 {[%clk 0:00:55]} 37. Re2 {[%clk 0:01:15]}  Ra7 {[%clk 0:00:23]} 38. a4 {[%clk 0:01:14]}  Rc7 {[%clk 0:00:20]} 39. Re8 {[%clk 0:01:12]}  Bb4 {[%clk 0:00:19]} 40. Rd8 {[%clk 0:01:08]}  Re7 {[%clk 0:00:19]} 41. Rc8 {[%clk 0:01:05]}  Ba3 {[%clk 0:00:18]} 42. Rc6 {[%clk 0:01:05]}  Bb4 {[%clk 0:00:18]} 43. Rxf6 {[%clk 0:01:03]}  Re1 {[%clk 0:00:17]} 44. Ra6 {[%clk 0:00:54]}  Rh1 {[%clk 0:00:17]} 45. h4 {[%clk 0:00:48]}  Rg1 {[%clk 0:00:16]} 46. Ra7 {[%clk 0:00:48]}  Rxg3 {[%clk 0:00:15]} 47. Bc4 {[%clk 0:00:48]}  Rg4 {[%clk 0:00:09]} 48. Bxf7 {[%clk 0:00:21]}  Rxh4 {[%clk 0:00:09]} 49. Bxh5+ {[%clk 0:00:16]}  Kf8 {[%clk 0:00:06]} 50. Be2 {[%clk 0:00:13]}  Bd2 {[%clk 0:00:05]} 51. Bg4 {[%clk 0:00:13]}  Ke8 {[%clk 0:00:04]} 52. Rc7 {[%clk 0:00:13]}  Rh2 {[%clk 0:00:04]} 53. Rxc5 {[%clk 0:00:12]}  Rf2 {[%clk 0:00:04]} 54. Re5+ {[%clk 0:00:12]}  Kf7 {[%clk 0:00:04]} 55. Re4 {[%clk 0:00:13]}  Be3 {[%clk 0:00:05]} 56. Bh5+ {[%clk 0:00:12]}  Kg7 {[%clk 0:00:04]} 57. Re7+ {[%clk 0:00:12]}  Kf8 {[%clk 0:00:05]} 58. Rc7 {[%clk 0:00:10]}  Bxf4 {[%clk 0:00:04]} 59. Rf7+ {[%clk 0:00:09]}  Kg8 {[%clk 0:00:04]} 60. Ke4 {[%clk 0:00:08]}  Be3 {[%clk 0:00:04]} 61. Rc7 {[%clk 0:00:09]}  Rf8 {[%clk 0:00:03]} 62. Be2 {[%clk 0:00:08]}  Kh8 {[%clk 0:00:03]} 63. Bd3 {[%clk 0:00:08]}  Rb8 {[%clk 0:00:02]} 64. Kd5 {[%clk 0:00:08]}  Rd8+ {[%clk 0:00:02]} 65. Kc6 {[%clk 0:00:08]}  Bd2 {[%clk 0:00:03]} 66. Ra7 {[%clk 0:00:08]}  Bc3 {[%clk 0:00:03]} 67. Kb5 {[%clk 0:00:07]}  Rb8+ {[%clk 0:00:04]} 68. Ka6 {[%clk 0:00:07]}  Rf8 {[%clk 0:00:05]} 69. Rc7 {[%clk 0:00:08]}  Kg8 {[%clk 0:00:05]} 70. Rc5 {[%clk 0:00:08]}  Kh8 {[%clk 0:00:05]} 71. Rh5+ {[%clk 0:00:07]}  Kg8 {[%clk 0:00:06]} 72. Rg5+ {[%clk 0:00:08]}  Kh8 {[%clk 0:00:06]} 73. Rd5 {[%clk 0:00:07]}  Kg8 {[%clk 0:00:06]} 74. Rd7 {[%clk 0:00:06]}  Kh8 {[%clk 0:00:06]} 75. Kb7 {[%clk 0:00:06]}  Kg8 {[%clk 0:00:06]} 76. Kc6 {[%clk 0:00:06]}  Kh8 {[%clk 0:00:06]} 77. Kd5 {[%clk 0:00:06]}  Kg8 {[%clk 0:00:07]} 78. Ke6 {[%clk 0:00:07]}  Rf2 {[%clk 0:00:07]} 79. Ke5 {[%clk 0:00:05]}  Rf8 {[%clk 0:00:07]} 80. Bc4+ {[%clk 0:00:05]}  Kh8 {[%clk 0:00:07]} 81. Kd5 {[%clk 0:00:05]}  Rf2 {[%clk 0:00:07]} 82. Rd8+ {[%clk 0:00:05]}  Kg7 {[%clk 0:00:08]} 83. Bd3 {[%clk 0:00:06]}  Rf8 {[%clk 0:00:08]} 84. Rd7+ {[%clk 0:00:06]}  Rf7 {[%clk 0:00:08]} 85. Rd6 {[%clk 0:00:07]}  Rf6 {[%clk 0:00:08]} 86. Rd8 {[%clk 0:00:07]}  Rf8 {[%clk 0:00:08]} 87. Rd7+ {[%clk 0:00:03]}  Rf7 {[%clk 0:00:09]} 88. Rd8 {[%clk 0:00:03]}  Rf8 {[%clk 0:00:09]} 1/2-1/2


[Site "https://www.chess.com"]

[Event "Titled Tuesday Blitz June 07 Early 2022"]
[White "Petrova, Irina"]
[Black "Wagner, Dinara"]
[WhiteFideId "14124122"]
[BlackFideId "24157570"]
[WhiteElo "1993"]
[BlackElo "2216"]
[Result "0-1"]
[Round "04"]
[TimeControl "180+1"]
[Date "2022.06.08"]
[WhiteClock "0:00:04"]
[BlackClock "0:00:12"]

1. e4 {[%clk 0:03:00]}  c5 {[%clk 0:02:59]} 2. Nf3 {[%clk 0:03:00]}  d6 {[%clk 0:03:00]} 3. Bb5+ {[%clk 0:03:00]}  Nd7 {[%clk 0:02:59]} 4. O-O {[%clk 0:02:59]}  a6 {[%clk 0:02:58]} 5. Bxd7+ {[%clk 0:02:59]}  Bxd7 {[%clk 0:02:59]} 6. d4 {[%clk 0:02:59]}  cxd4 {[%clk 0:02:59]} 7. Qxd4 {[%clk 0:03:00]}  e5 {[%clk 0:02:55]} 8. Qd3 {[%clk 0:03:00]}  Rc8 {[%clk 0:02:56]} 9. a4 {[%clk 0:02:57]}  h6 {[%clk 0:02:55]} 10. c4 {[%clk 0:02:56]}  Nf6 {[%clk 0:01:44]} 11. Nc3 {[%clk 0:02:56]}  Be7 {[%clk 0:01:44]} 12. b3 {[%clk 0:02:56]}  Qb6 {[%clk 0:01:43]} 13. Nd2 {[%clk 0:02:47]}  O-O {[%clk 0:01:40]} 14. Ba3 {[%clk 0:02:46]}  Be6 {[%clk 0:01:32]} 15. Rfd1 {[%clk 0:02:41]}  Bg4 {[%clk 0:01:22]} 16. Re1 {[%clk 0:02:38]}  Be6 {[%clk 0:01:22]} 17. Rab1 {[%clk 0:02:20]}  Ng4 {[%clk 0:01:22]} 18. Qg3 {[%clk 0:02:11]}  f5 {[%clk 0:01:19]} 19. exf5 {[%clk 0:02:05]}  Bxf5 {[%clk 0:01:18]} 20. Nde4 {[%clk 0:02:05]}  Qd8 {[%clk 0:00:38]} 21. Rbd1 {[%clk 0:01:54]}  Bh4 {[%clk 0:00:38]} 22. Qf3 {[%clk 0:01:17]}  Bxe4 {[%clk 0:00:28]} 23. Qxg4 {[%clk 0:00:59]}  Bxf2+ {[%clk 0:00:28]} 24. Kh1 {[%clk 0:00:59]}  Bxe1 {[%clk 0:00:28]} 25. Rxe1 {[%clk 0:00:59]}  Bf5 {[%clk 0:00:27]} 26. Qe2 {[%clk 0:00:56]}  Qf6 {[%clk 0:00:27]} 27. Nd5 {[%clk 0:00:56]}  Qf7 {[%clk 0:00:27]} 28. Bxd6 {[%clk 0:00:50]}  Rfe8 {[%clk 0:00:26]} 29. Ne3 {[%clk 0:00:44]}  Bg6 {[%clk 0:00:17]} 30. Rf1 {[%clk 0:00:40]}  Qe6 {[%clk 0:00:17]} 31. Ba3 {[%clk 0:00:34]}  Kh7 {[%clk 0:00:17]} 32. Nd5 {[%clk 0:00:33]}  Rcd8 {[%clk 0:00:16]} 33. Qe3 {[%clk 0:00:30]}  Rd7 {[%clk 0:00:15]} 34. h3 {[%clk 0:00:29]}  Rxd5 {[%clk 0:00:14]} 35. cxd5 {[%clk 0:00:29]}  Qxd5 {[%clk 0:00:15]} 36. Kh2 {[%clk 0:00:28]}  Rc8 {[%clk 0:00:15]} 37. Rf8 {[%clk 0:00:26]}  Rc2 {[%clk 0:00:14]} 38. Rf2 {[%clk 0:00:18]}  Rc6 {[%clk 0:00:13]} 39. Be7 {[%clk 0:00:15]}  Be4 {[%clk 0:00:10]} 40. b4 {[%clk 0:00:15]}  Rg6 {[%clk 0:00:11]} 41. g3 {[%clk 0:00:13]}  Rc6 {[%clk 0:00:07]} 42. Bc5 {[%clk 0:00:13]}  Bg6 {[%clk 0:00:07]} 43. a5 {[%clk 0:00:12]}  Re6 {[%clk 0:00:07]} 44. Re2 {[%clk 0:00:10]}  Qc4 {[%clk 0:00:06]} 45. Rf2 {[%clk 0:00:10]}  Rc6 {[%clk 0:00:06]} 46. Qe1 {[%clk 0:00:08]}  Qd5 {[%clk 0:00:07]} 47. Qe3 {[%clk 0:00:08]}  Rc8 {[%clk 0:00:06]} 48. Re2 {[%clk 0:00:08]}  Re8 {[%clk 0:00:06]} 49. Rf2 {[%clk 0:00:08]}  Qc6 {[%clk 0:00:05]} 50. Re2 {[%clk 0:00:08]}  Qe6 {[%clk 0:00:04]} 51. Rf2 {[%clk 0:00:08]}  Bf5 {[%clk 0:00:05]} 52. h4 {[%clk 0:00:08]}  Bg6 {[%clk 0:00:05]} 53. Rd2 {[%clk 0:00:08]}  Qg4 {[%clk 0:00:05]} 54. Rf2 {[%clk 0:00:08]}  Bf5 {[%clk 0:00:05]} 55. Kg1 {[%clk 0:00:08]}  Rd8 {[%clk 0:00:05]} 56. Rf1 {[%clk 0:00:07]}  Rd3 {[%clk 0:00:04]} 57. Qxe5 {[%clk 0:00:07]}  Rxg3+ {[%clk 0:00:05]} 58. Kf2 {[%clk 0:00:08]}  Rf3+ {[%clk 0:00:04]} 59. Ke1 {[%clk 0:00:08]}  Rxf1+ {[%clk 0:00:03]} 60. Kxf1 {[%clk 0:00:08]}  Bd3+ {[%clk 0:00:04]} 61. Kf2 {[%clk 0:00:08]}  Qxh4+ {[%clk 0:00:05]} 62. Ke3 {[%clk 0:00:08]}  Bg6 {[%clk 0:00:05]} 63. Qc7 {[%clk 0:00:07]}  Qh3+ {[%clk 0:00:05]} 64. Kd4 {[%clk 0:00:06]}  Qg4+ {[%clk 0:00:05]} 65. Kd5 {[%clk 0:00:06]}  Qe4+ {[%clk 0:00:05]} 66. Kd6 {[%clk 0:00:06]}  Qf4+ {[%clk 0:00:05]} 67. Kd7 {[%clk 0:00:06]}  Qxc7+ {[%clk 0:00:06]} 68. Kxc7 {[%clk 0:00:07]}  Be4 {[%clk 0:00:06]} 69. Kd6 {[%clk 0:00:07]}  g5 {[%clk 0:00:07]} 70. Ke5 {[%clk 0:00:07]}  Bc6 {[%clk 0:00:06]} 71. Kf5 {[%clk 0:00:07]}  Kg7 {[%clk 0:00:05]} 72. Be7 {[%clk 0:00:07]}  Kf7 {[%clk 0:00:05]} 73. Bc5 {[%clk 0:00:07]}  Bd7+ {[%clk 0:00:05]} 74. Ke4 {[%clk 0:00:07]}  Kg6 {[%clk 0:00:06]} 75. Kf3 {[%clk 0:00:07]}  Bc6+ {[%clk 0:00:06]} 76. Kg3 {[%clk 0:00:07]}  h5 {[%clk 0:00:07]} 77. Bd6 {[%clk 0:00:07]}  h4+ {[%clk 0:00:08]} 78. Kh2 {[%clk 0:00:06]}  Kf5 {[%clk 0:00:08]} 79. Be7 {[%clk 0:00:06]}  Kg4 {[%clk 0:00:08]} 80. Kg1 {[%clk 0:00:06]}  Bd5 {[%clk 0:00:09]} 81. Kh2 {[%clk 0:00:06]}  Kf4 {[%clk 0:00:09]} 82. Kg1 {[%clk 0:00:06]}  Kg4 {[%clk 0:00:09]} 83. Kh2 {[%clk 0:00:06]}  Kh5 {[%clk 0:00:10]} 84. Kg1 {[%clk 0:00:05]}  g4 {[%clk 0:00:10]} 85. Kh2 {[%clk 0:00:05]}  g3+ {[%clk 0:00:11]} 86. Kh3 {[%clk 0:00:05]}  Be6+ {[%clk 0:00:11]} 87. Kg2 {[%clk 0:00:05]}  Kg4 {[%clk 0:00:11]} 88. Bd6 {[%clk 0:00:04]}  h3+ {[%clk 0:00:12]} 89. Kg1 {[%clk 0:00:04]}  h2+ {[%clk 0:00:12]} 90. Kh1 {[%clk 0:00:04]}  Bd5# {[%clk 0:00:12]} 0-1


[Site "https://www.chess.com"]

[Event "Titled Tuesday Blitz June 07 Early 2022"]
[White "Prokofiev, Valentyn"]
[Black "Jumabayev, Rinat"]
[WhiteFideId "14160161"]
[BlackFideId "13702661"]
[WhiteElo "2142"]
[BlackElo "2561"]
[Result "1-0"]
[Round "04"]
[TimeControl "180+1"]
[Date "2022.06.08"]
[WhiteClock "0:00:44"]
[BlackClock "0:00:01"]

1. d4 {[%clk 0:02:58]}  d5 {[%clk 0:03:00]} 2. c4 {[%clk 0:02:57]}  e6 {[%clk 0:03:00]} 3. Nf3 {[%clk 0:02:57]}  Nf6 {[%clk 0:02:59]} 4. e3 {[%clk 0:02:58]}  c5 {[%clk 0:02:54]} 5. cxd5 {[%clk 0:02:55]}  exd5 {[%clk 0:02:53]} 6. Be2 {[%clk 0:02:43]}  Nc6 {[%clk 0:02:53]} 7. O-O {[%clk 0:02:43]}  Bd6 {[%clk 0:02:54]} 8. dxc5 {[%clk 0:02:40]}  Bxc5 {[%clk 0:02:55]} 9. b3 {[%clk 0:02:41]}  O-O {[%clk 0:02:55]} 10. Bb2 {[%clk 0:02:41]}  Re8 {[%clk 0:02:52]} 11. Nc3 {[%clk 0:02:41]}  a6 {[%clk 0:02:47]} 12. Rc1 {[%clk 0:02:36]}  Ba7 {[%clk 0:02:47]} 13. Na4 {[%clk 0:02:21]}  Bg4 {[%clk 0:02:45]} 14. Nc5 {[%clk 0:01:58]}  Qe7 {[%clk 0:02:25]} 15. Bxf6 {[%clk 0:01:57]}  Qxf6 {[%clk 0:02:12]} 16. Nxb7 {[%clk 0:01:47]}  h5 {[%clk 0:01:18]} 17. h3 {[%clk 0:01:46]}  Bf5 {[%clk 0:01:14]} 18. Qxd5 {[%clk 0:01:28]}  Be4 {[%clk 0:00:45]} 19. Qg5 {[%clk 0:01:01]}  Qb2 {[%clk 0:00:26]} 20. Nd6 {[%clk 0:00:57]}  Nb4 {[%clk 0:00:04]} 21. Bc4 {[%clk 0:00:45]}  Re7 {[%clk 0:00:01]} 22. Qxe7 {[%clk 0:00:44]} 1-0


[Site "https://www.chess.com"]

[Event "Titled Tuesday Blitz June 07 Early 2022"]
[White "Salinas Herrera, Pablo"]
[Black "Andreikin, Dmitry"]
[WhiteFideId "3407128"]
[BlackFideId "4158814"]
[WhiteElo "2541"]
[BlackElo "2736"]
[Result "0-1"]
[Round "04"]
[TimeControl "180+1"]
[Date "2022.06.07"]
[WhiteClock "0:00:02"]
[BlackClock "0:00:36"]

1. e4 {[%clk 0:03:00]}  c5 {[%clk 0:03:00]} 2. Nf3 {[%clk 0:02:59]}  e6 {[%clk 0:03:00]} 3. g3 {[%clk 0:02:59]}  Nc6 {[%clk 0:02:58]} 4. Bg2 {[%clk 0:02:59]}  Nf6 {[%clk 0:02:57]} 5. Qe2 {[%clk 0:02:59]}  e5 {[%clk 0:02:56]} 6. O-O {[%clk 0:02:59]}  d6 {[%clk 0:02:56]} 7. c3 {[%clk 0:02:58]}  Bg4 {[%clk 0:02:56]} 8. Rd1 {[%clk 0:02:58]}  Be7 {[%clk 0:02:55]} 9. Na3 {[%clk 0:02:58]}  Qd7 {[%clk 0:02:53]} 10. Nc2 {[%clk 0:02:54]}  O-O {[%clk 0:02:50]} 11. d4 {[%clk 0:02:44]}  cxd4 {[%clk 0:02:49]} 12. cxd4 {[%clk 0:02:45]}  Rac8 {[%clk 0:02:44]} 13. d5 {[%clk 0:01:46]}  Nb8 {[%clk 0:02:44]} 14. Bg5 {[%clk 0:01:37]}  Qa4 {[%clk 0:02:16]} 15. b3 {[%clk 0:01:18]}  Qa6 {[%clk 0:02:08]} 16. Qxa6 {[%clk 0:01:13]}  Nxa6 {[%clk 0:02:09]} 17. Ne3 {[%clk 0:01:13]}  Bd7 {[%clk 0:02:02]} 18. Nc4 {[%clk 0:01:06]}  b5 {[%clk 0:01:56]} 19. Bxf6 {[%clk 0:00:59]}  gxf6 {[%clk 0:01:57]} 20. Ne3 {[%clk 0:00:59]}  Nb4 {[%clk 0:01:54]} 21. Ne1 {[%clk 0:00:50]}  Bd8 {[%clk 0:01:50]} 22. a3 {[%clk 0:00:50]}  Na6 {[%clk 0:01:50]} 23. b4 {[%clk 0:00:49]}  Bb6 {[%clk 0:01:50]} 24. Rd3 {[%clk 0:00:44]}  Rc7 {[%clk 0:01:47]} 25. Rad1 {[%clk 0:00:44]}  Rfc8 {[%clk 0:01:47]} 26. h4 {[%clk 0:00:44]}  Rc1 {[%clk 0:01:42]} 27. Kf1 {[%clk 0:00:41]}  Rxd1 {[%clk 0:01:39]} 28. Nxd1 {[%clk 0:00:42]}  Rc1 {[%clk 0:01:36]} 29. Bf3 {[%clk 0:00:39]}  f5 {[%clk 0:01:36]} 30. Rc3 {[%clk 0:00:30]}  Ra1 {[%clk 0:01:35]} 31. Nc2 {[%clk 0:00:26]}  Rb1 {[%clk 0:01:29]} 32. exf5 {[%clk 0:00:20]}  Bxf5 {[%clk 0:01:29]} 33. Kg2 {[%clk 0:00:20]}  Nc7 {[%clk 0:01:24]} 34. Nde3 {[%clk 0:00:19]}  Bd7 {[%clk 0:01:23]} 35. Bg4 {[%clk 0:00:19]}  Bxg4 {[%clk 0:01:16]} 36. Nxg4 {[%clk 0:00:20]}  Rc1 {[%clk 0:01:12]} 37. Rc6 {[%clk 0:00:19]}  Kg7 {[%clk 0:01:00]} 38. h5 {[%clk 0:00:17]}  f5 {[%clk 0:00:57]} 39. h6+ {[%clk 0:00:17]}  Kf7 {[%clk 0:00:57]} 40. Nh2 {[%clk 0:00:15]}  Nxd5 {[%clk 0:00:55]} 41. Rxd6 {[%clk 0:00:14]}  Rxc2 {[%clk 0:00:53]} 42. Rxd5 {[%clk 0:00:15]}  Rxf2+ {[%clk 0:00:53]} 43. Kh3 {[%clk 0:00:15]}  e4 {[%clk 0:00:48]} 44. g4 {[%clk 0:00:10]}  e3 {[%clk 0:00:40]} 45. Re5 {[%clk 0:00:03]}  Bc7 {[%clk 0:00:36]} 46. Rxf5+ {[%clk 0:00:02]}  Rxf5 {[%clk 0:00:36]} 47. gxf5 {[%clk 0:00:02]}  Bxh2 {[%clk 0:00:36]} 0-1


[Site "https://www.chess.com"]

[Event "Titled Tuesday Blitz June 07 Early 2022"]
[White "Sapunov, Evgeny"]
[Black "Suleymanli, Aydin"]
[WhiteFideId "4126661"]
[BlackFideId "13413937"]
[WhiteElo "2470"]
[BlackElo "2481"]
[Result "1-0"]
[Round "04"]
[TimeControl "180+1"]
[Date "2022.06.07"]
[WhiteClock "0:00:28"]
[BlackClock "0:00:03"]

1. c4 {[%clk 0:03:00]}  e5 {[%clk 0:02:59]} 2. Nf3 {[%clk 0:03:00]}  Nc6 {[%clk 0:02:56]} 3. Nc3 {[%clk 0:03:00]}  g6 {[%clk 0:02:56]} 4. d4 {[%clk 0:03:00]}  exd4 {[%clk 0:02:57]} 5. Nxd4 {[%clk 0:03:01]}  Bg7 {[%clk 0:02:56]} 6. Nxc6 {[%clk 0:03:01]}  bxc6 {[%clk 0:02:55]} 7. g3 {[%clk 0:03:01]}  Ne7 {[%clk 0:02:55]} 8. Bg2 {[%clk 0:03:02]}  O-O {[%clk 0:02:54]} 9. O-O {[%clk 0:03:02]}  Rb8 {[%clk 0:02:55]} 10. Qa4 {[%clk 0:03:02]}  a6 {[%clk 0:02:52]} 11. c5 {[%clk 0:02:59]}  Re8 {[%clk 0:02:45]} 12. Rd1 {[%clk 0:02:58]}  d5 {[%clk 0:02:28]} 13. cxd6 {[%clk 0:02:55]}  cxd6 {[%clk 0:02:29]} 14. Qc2 {[%clk 0:02:51]}  d5 {[%clk 0:02:25]} 15. e4 {[%clk 0:02:43]}  Qa5 {[%clk 0:02:09]} 16. Bf4 {[%clk 0:02:28]}  Rb7 {[%clk 0:01:40]} 17. Rac1 {[%clk 0:02:26]}  Be6 {[%clk 0:01:34]} 18. b3 {[%clk 0:02:24]}  Rb4 {[%clk 0:01:02]} 19. Bd2 {[%clk 0:02:17]}  Qb6 {[%clk 0:00:35]} 20. Na4 {[%clk 0:01:59]}  Rxa4 {[%clk 0:00:35]} 21. bxa4 {[%clk 0:01:58]}  d4 {[%clk 0:00:35]} 22. a5 {[%clk 0:01:52]}  Qa7 {[%clk 0:00:26]} 23. Bb4 {[%clk 0:01:49]}  Rb8 {[%clk 0:00:22]} 24. Bc5 {[%clk 0:01:44]}  Qd7 {[%clk 0:00:22]} 25. Rd2 {[%clk 0:01:38]}  Rb5 {[%clk 0:00:17]} 26. Rcd1 {[%clk 0:01:34]}  Bg4 {[%clk 0:00:14]} 27. f3 {[%clk 0:01:32]}  Be6 {[%clk 0:00:13]} 28. Bf1 {[%clk 0:01:30]}  Rxa5 {[%clk 0:00:06]} 29. a4 {[%clk 0:01:25]}  h5 {[%clk 0:00:04]} 30. h4 {[%clk 0:01:22]}  Qc7 {[%clk 0:00:04]} 31. Kg2 {[%clk 0:01:21]}  f5 {[%clk 0:00:04]} 32. Bc4 {[%clk 0:01:16]}  Bxc4 {[%clk 0:00:03]} 33. Qxc4+ {[%clk 0:01:16]}  Kh7 {[%clk 0:00:04]} 34. Bxd4 {[%clk 0:01:15]}  fxe4 {[%clk 0:00:04]} 35. fxe4 {[%clk 0:01:09]}  Bxd4 {[%clk 0:00:04]} 36. Rxd4 {[%clk 0:01:09]}  Qe5 {[%clk 0:00:03]} 37. Qf7+ {[%clk 0:01:07]}  Kh6 {[%clk 0:00:04]} 38. Qf8+ {[%clk 0:00:55]}  Kh7 {[%clk 0:00:04]} 39. Rf1 {[%clk 0:00:50]}  Ng8 {[%clk 0:00:04]} 40. Rf7+ {[%clk 0:00:49]}  Kh8 {[%clk 0:00:04]} 41. Rdd7 {[%clk 0:00:27]}  Qxe4+ {[%clk 0:00:04]} 42. Rf3 {[%clk 0:00:27]}  Qe2+ {[%clk 0:00:03]} 43. Rf2 {[%clk 0:00:28]}  Qe4+ {[%clk 0:00:03]} 44. Kh2 {[%clk 0:00:28]} 1-0


[Site "https://www.chess.com"]

[Event "Titled Tuesday Blitz June 07 Early 2022"]
[White "Sokolovsky, Yahli"]
[Black "Sjugirov, Sanan"]
[WhiteFideId "2820242"]
[BlackFideId "4189302"]
[WhiteElo "1770"]
[BlackElo "2602"]
[Result "0-1"]
[Round "04"]
[TimeControl "180+1"]
[Date "2022.06.07"]
[WhiteClock "0:00:01"]
[BlackClock "0:00:13"]

1. b3 {[%clk 0:03:00]}  g6 {[%clk 0:03:00]} 2. Bb2 {[%clk 0:03:01]}  Nf6 {[%clk 0:03:00]} 3. d4 {[%clk 0:03:01]}  Bg7 {[%clk 0:02:59]} 4. Nf3 {[%clk 0:03:02]}  O-O {[%clk 0:02:59]} 5. g3 {[%clk 0:03:02]}  d5 {[%clk 0:02:54]} 6. Bg2 {[%clk 0:03:03]}  c6 {[%clk 0:02:55]} 7. O-O {[%clk 0:03:03]}  a5 {[%clk 0:02:55]} 8. a3 {[%clk 0:02:44]}  a4 {[%clk 0:02:51]} 9. b4 {[%clk 0:02:44]}  Nbd7 {[%clk 0:02:41]} 10. Nbd2 {[%clk 0:02:43]}  b5 {[%clk 0:02:33]} 11. Ne1 {[%clk 0:02:28]}  Nb6 {[%clk 0:02:31]} 12. Nd3 {[%clk 0:02:28]}  Bf5 {[%clk 0:02:27]} 13. Nc5 {[%clk 0:02:27]}  Nbd7 {[%clk 0:02:26]} 14. e4 {[%clk 0:02:14]}  Nxc5 {[%clk 0:02:20]} 15. exf5 {[%clk 0:02:10]}  Nb7 {[%clk 0:02:18]} 16. fxg6 {[%clk 0:02:07]}  hxg6 {[%clk 0:02:18]} 17. Nf3 {[%clk 0:02:00]}  Nd6 {[%clk 0:02:19]} 18. Ne5 {[%clk 0:02:00]}  Rc8 {[%clk 0:02:15]} 19. Bc1 {[%clk 0:02:00]}  Nd7 {[%clk 0:02:13]} 20. f4 {[%clk 0:01:48]}  Nf6 {[%clk 0:01:50]} 21. c3 {[%clk 0:01:30]}  Qe8 {[%clk 0:01:48]} 22. Bd2 {[%clk 0:01:24]}  Nfe4 {[%clk 0:01:46]} 23. Qc2 {[%clk 0:01:21]}  f6 {[%clk 0:01:42]} 24. Nd3 {[%clk 0:01:21]}  Qf7 {[%clk 0:01:41]} 25. Rae1 {[%clk 0:00:52]}  Kh7 {[%clk 0:01:40]} 26. Nc5 {[%clk 0:00:51]}  f5 {[%clk 0:01:36]} 27. Nd3 {[%clk 0:00:47]}  Nc4 {[%clk 0:01:35]} 28. Bc1 {[%clk 0:00:46]}  e6 {[%clk 0:01:30]} 29. Ne5 {[%clk 0:00:36]}  Bxe5 {[%clk 0:01:27]} 30. fxe5 {[%clk 0:00:36]}  Qe7 {[%clk 0:01:24]} 31. Rf4 {[%clk 0:00:30]}  Kg7 {[%clk 0:01:24]} 32. Ref1 {[%clk 0:00:30]}  Rh8 {[%clk 0:01:23]} 33. g4 {[%clk 0:00:06]}  Rh4 {[%clk 0:01:11]} 34. gxf5 {[%clk 0:00:04]}  exf5 {[%clk 0:01:12]} 35. Bxe4 {[%clk 0:00:04]}  dxe4 {[%clk 0:01:09]} 36. Qg2 {[%clk 0:00:04]}  Rxf4 {[%clk 0:00:52]} 37. Bxf4 {[%clk 0:00:05]}  Qe6 {[%clk 0:00:51]} 38. Bg5 {[%clk 0:00:05]}  Rg8 {[%clk 0:00:31]} 39. Bf6+ {[%clk 0:00:05]}  Kf7 {[%clk 0:00:32]} 40. Qh3 {[%clk 0:00:06]}  Ke8 {[%clk 0:00:28]} 41. Qh7 {[%clk 0:00:06]}  Qf7 {[%clk 0:00:28]} 42. Qh4 {[%clk 0:00:02]}  Kd7 {[%clk 0:00:27]} 43. Qg3 {[%clk 0:00:01]}  Nb6 {[%clk 0:00:23]} 44. h4 {[%clk 0:00:01]}  Nd5 {[%clk 0:00:23]} 45. Bg5 {[%clk 0:00:02]}  Qe6 {[%clk 0:00:22]} 46. Kg2 {[%clk 0:00:02]}  Rf8 {[%clk 0:00:22]} 47. Bf4 {[%clk 0:00:03]}  Rh8 {[%clk 0:00:21]} 48. Rh1 {[%clk 0:00:03]}  Rh5 {[%clk 0:00:18]} 49. Rh2 {[%clk 0:00:03]}  Nb6 {[%clk 0:00:18]} 50. Rh1 {[%clk 0:00:03]}  Qa2+ {[%clk 0:00:17]} 51. Qf2 {[%clk 0:00:03]}  Qxf2+ {[%clk 0:00:17]} 52. Kxf2 {[%clk 0:00:04]}  Nd5 {[%clk 0:00:17]} 53. Bd2 {[%clk 0:00:04]}  f4 {[%clk 0:00:18]} 54. Be1 {[%clk 0:00:04]}  Ke6 {[%clk 0:00:18]} 55. Kg2 {[%clk 0:00:04]}  Kf5 {[%clk 0:00:18]} 56. Kf1 {[%clk 0:00:04]}  g5 {[%clk 0:00:18]} 57. Rg1 {[%clk 0:00:05]}  g4 {[%clk 0:00:18]} 58. Ke2 {[%clk 0:00:02]}  f3+ {[%clk 0:00:13]} 59. Kd1 {[%clk 0:00:02]}  e3 {[%clk 0:00:14]} 60. Bg3 {[%clk 0:00:02]}  Nxc3+ {[%clk 0:00:14]} 61. Kc2 {[%clk 0:00:03]}  Ne2 {[%clk 0:00:14]} 62. e6 {[%clk 0:00:01]}  Kxe6 {[%clk 0:00:13]} 0-1


[Site "https://www.chess.com"]